[Event "*** SCC Grand Prix: Titled Tuesday Blitz"]
[Site "Chess.com"]
[Date "2020.06.02"]
[Round "2"]
[White "Igrok3069"]
[Black "Oglob71"]
[Result "1-0"]
[WhiteElo "2771"]
[BlackElo "2514"]
[TimeControl "180+1"]
[EndTime "10:16:43 PDT"]
[Termination "Igrok3069 won by resignation"]

1. d4 {[%clk 0:03:00.9]} 1... Nf6 {[%clk 0:02:57]} 2. Nf3 {[%clk 0:03:01]} 2...
e6 {[%clk 0:02:57.4]} 3. c4 {[%clk 0:03:00.1]} 3... b6 {[%clk 0:02:57.4]} 4. a3
{[%clk 0:02:58.4]} 4... Bb7 {[%clk 0:02:54.3]} 5. Nc3 {[%clk 0:02:57.8]} 5...
Ne4 {[%clk 0:02:54.8]} 6. Nxe4 {[%clk 0:02:55.7]} 6... Bxe4 {[%clk 0:02:54.6]}
7. Nd2 {[%clk 0:02:56.6]} 7... Bg6 {[%clk 0:02:54.6]} 8. e4 {[%clk 0:02:56.2]}
8... Nc6 {[%clk 0:02:53.4]} 9. d5 {[%clk 0:02:56.2]} 9... Nd4 {[%clk 0:02:52.9]}
10. Bd3 {[%clk 0:02:55.5]} 10... c5 {[%clk 0:02:41.6]} 11. O-O {[%clk 0:02:53]}
11... e5 {[%clk 0:02:38.2]} 12. f4 {[%clk 0:02:48]} 12... exf4 {[%clk 0:02:38]}
13. Nf3 {[%clk 0:02:48.2]} 13... Bd6 {[%clk 0:02:10.6]} 14. Nxd4 {[%clk
0:02:39]} 14... cxd4 {[%clk 0:02:10.1]} 15. Bxf4 {[%clk 0:02:35.7]} 15... Bxf4
{[%clk 0:02:08.7]} 16. Rxf4 {[%clk 0:02:36.6]} 16... d6 {[%clk 0:02:07.4]} 17.
h4 {[%clk 0:02:26.4]} 17... Qe7 {[%clk 0:01:51.1]} 18. h5 {[%clk 0:02:20.5]}
18... Qe5 {[%clk 0:01:50.7]} 19. Rh4 {[%clk 0:02:18.2]} 19... Qg5 {[%clk
0:01:41.4]} 20. Rh3 {[%clk 0:02:17.8]} 20... O-O-O {[%clk 0:01:38.4]} 21. Qf3
{[%clk 0:02:09.2]} 21... f6 {[%clk 0:01:18.5]} 22. hxg6 {[%clk 0:02:07.4]} 22...
hxg6 {[%clk 0:01:18.1]} 23. Rd1 {[%clk 0:01:58.5]} 23... Kc7 {[%clk 0:01:16.2]}
24. Qg3 {[%clk 0:01:50.3]} 24... Qe5 {[%clk 0:01:06.9]} 25. Qxe5 {[%clk
0:01:48.4]} 25... dxe5 {[%clk 0:01:03.8]} 26. Rxh8 {[%clk 0:01:47.5]} 26... Rxh8
{[%clk 0:01:03.2]} 27. b4 {[%clk 0:01:48.2]} 27... Kd6 {[%clk 0:01:02.4]} 28.
Rc1 {[%clk 0:01:47.2]} 28... Rc8 {[%clk 0:00:56.5]} 29. Kf2 {[%clk 0:01:46.6]}
29... g5 {[%clk 0:00:55]} 30. Ke2 {[%clk 0:01:43.1]} 30... g6 {[%clk 0:00:54.8]}
31. Bb1 {[%clk 0:01:39.6]} 31... a5 {[%clk 0:00:49.7]} 32. g4 {[%clk 0:01:37.2]}
32... axb4 {[%clk 0:00:49]} 33. axb4 {[%clk 0:01:37.1]} 33... Rh8 {[%clk
0:00:48.4]} 34. c5+ {[%clk 0:01:36.5]} 34... bxc5 {[%clk 0:00:48.5]} 35. bxc5+
{[%clk 0:01:36.4]} 35... Kc7 {[%clk 0:00:47.4]} 36. Kd3 {[%clk 0:01:28.4]} 36...
Rh4 {[%clk 0:00:35.8]} 37. Ba2 {[%clk 0:01:21.7]} 37... Rh3+ {[%clk 0:00:25.8]}
38. Kc4 {[%clk 0:01:20.2]} 38... Ra3 {[%clk 0:00:21.7]} 39. Bb3 {[%clk
0:01:17.8]} 39... d3 {[%clk 0:00:17.3]} 40. Rd1 {[%clk 0:01:15.9]} 1-0

[Event "*** SCC Grand Prix: Titled Tuesday Blitz"]
[Site "Chess.com"]
[Date "2020.06.02"]
[Round "2"]
[White "GjakanTati"]
[Black "BabyBoss31"]
[Result "1-0"]
[WhiteElo "2612"]
[BlackElo "2305"]
[TimeControl "180+1"]
[EndTime "10:16:43 PDT"]
[Termination "GjakanTati won by resignation"]

1. d4 {[%clk 0:03:00.9]} 1... d5 {[%clk 0:02:59.8]} 2. c4 {[%clk 0:03:01.2]}
2... dxc4 {[%clk 0:03:00.7]} 3. e3 {[%clk 0:03:00.6]} 3... Nf6 {[%clk
0:02:58.2]} 4. Bxc4 {[%clk 0:02:59.7]} 4... e6 {[%clk 0:02:54.2]} 5. Nf3 {[%clk
0:02:59.1]} 5... c5 {[%clk 0:02:53.3]} 6. Nc3 {[%clk 0:02:57.6]} 6... a6 {[%clk
0:02:50.9]} 7. a4 {[%clk 0:02:53.7]} 7... Nc6 {[%clk 0:02:48.7]} 8. O-O {[%clk
0:02:53.1]} 8... Be7 {[%clk 0:02:47.6]} 9. Ba2 {[%clk 0:02:35.1]} 9... cxd4
{[%clk 0:02:25.6]} 10. exd4 {[%clk 0:02:32.9]} 10... Nb4 {[%clk 0:02:25.5]} 11.
Bb1 {[%clk 0:02:31.1]} 11... b6 {[%clk 0:02:23.6]} 12. a5 {[%clk 0:02:19.5]}
12... b5 {[%clk 0:02:17.8]} 13. Ne5 {[%clk 0:02:10.9]} 13... Bb7 {[%clk
0:02:13.3]} 14. Bg5 {[%clk 0:01:55.7]} 14... Nfd5 {[%clk 0:01:58.1]} 15. Bxe7
{[%clk 0:01:32.7]} 15... Qxe7 {[%clk 0:01:49.2]} 16. Ne4 {[%clk 0:01:32.8]}
16... O-O {[%clk 0:01:28.6]} 17. Qh5 {[%clk 0:01:30.1]} 17... h6 {[%clk
0:01:07.1]} 18. Ra3 {[%clk 0:01:19.7]} 18... Nf4 {[%clk 0:00:54.1]} 19. Qg4
{[%clk 0:01:15.5]} 19... f5 {[%clk 0:00:34.3]} 20. Qxf4 {[%clk 0:01:07.6]} 20...
fxe4 {[%clk 0:00:33.5]} 21. Qg4 {[%clk 0:01:03.8]} 21... Qg5 {[%clk 0:00:25.6]}
22. Qxe6+ {[%clk 0:01:02.4]} 22... Kh7 {[%clk 0:00:22]} 23. Rg3 {[%clk
0:01:01.7]} 23... Qf6 {[%clk 0:00:18.5]} 24. Qd7 {[%clk 0:00:59.7]} 24... Bd5
{[%clk 0:00:17.3]} 25. Rg6 {[%clk 0:00:57.2]} 25... Rfd8 {[%clk 0:00:08.5]} 26.
Qg4 {[%clk 0:00:52.8]} 26... Qf8 {[%clk 0:00:07.7]} 27. Bxe4 {[%clk 0:00:51.3]}
27... Bxe4 {[%clk 0:00:08.3]} 28. Qxe4 {[%clk 0:00:51.7]} 28... Kh8 {[%clk
0:00:09.1]} 29. Rxh6+ {[%clk 0:00:51]} 29... gxh6 {[%clk 0:00:09]} 30. Ng6+
{[%clk 0:00:50.8]} 30... Kg7 {[%clk 0:00:09.9]} 31. Nxf8 {[%clk 0:00:51.3]}
31... Kxf8 {[%clk 0:00:10.8]} 32. Qh7 {[%clk 0:00:47.8]} 32... Nd5 {[%clk
0:00:11.7]} 1-0

[Event "*** SCC Grand Prix: Titled Tuesday Blitz"]
[Site "Chess.com"]
[Date "2020.06.02"]
[Round "2"]
[White "Giraffe_Chess"]
[Black "FMOlexandrProhorov"]
[Result "1-0"]
[WhiteElo "2381"]
[BlackElo "2072"]
[TimeControl "180+1"]
[EndTime "10:16:43 PDT"]
[Termination "Giraffe_Chess won on time"]

1. d4 {[%clk 0:03:00.9]} 1... g6 {[%clk 0:02:58.8]} 2. c4 {[%clk 0:03:00.1]}
2... Bg7 {[%clk 0:02:58.1]} 3. Nc3 {[%clk 0:03:00.1]} 3... c5 {[%clk 0:02:57.3]}
4. d5 {[%clk 0:03:00.3]} 4... Bxc3+ {[%clk 0:02:56.3]} 5. bxc3 {[%clk
0:03:01.2]} 5... f5 {[%clk 0:02:56.6]} 6. e4 {[%clk 0:03:01.8]} 6... fxe4 {[%clk
0:02:56]} 7. f3 {[%clk 0:03:00.6]} 7... e3 {[%clk 0:02:55.1]} 8. Bxe3 {[%clk
0:03:00.1]} 8... Qa5 {[%clk 0:02:55.1]} 9. Qd2 {[%clk 0:02:58.7]} 9... Nf6
{[%clk 0:02:52.6]} 10. h4 {[%clk 0:02:58]} 10... d6 {[%clk 0:02:49.9]} 11. Ne2
{[%clk 0:02:53.7]} 11... Nbd7 {[%clk 0:02:45.8]} 12. Nf4 {[%clk 0:02:33.3]}
12... Nb6 {[%clk 0:02:35]} 13. h5 {[%clk 0:02:24.1]} 13... gxh5 {[%clk
0:02:15.6]} 14. Nxh5 {[%clk 0:02:21.1]} 14... Nxh5 {[%clk 0:02:14.7]} 15. Rxh5
{[%clk 0:02:22]} 15... Bd7 {[%clk 0:02:14.9]} 16. Rb1 {[%clk 0:02:13.6]} 16...
O-O-O {[%clk 0:02:14.1]} 17. Qd3 {[%clk 0:02:06.4]} 17... Na4 {[%clk 0:01:52.5]}
18. Rb3 {[%clk 0:02:00.3]} 18... e6 {[%clk 0:01:35.7]} 19. Rxh7 {[%clk
0:01:51.1]} 19... Rxh7 {[%clk 0:01:31.2]} 20. Qxh7 {[%clk 0:01:52]} 20... exd5
{[%clk 0:01:23.7]} 21. cxd5 {[%clk 0:01:51.9]} 21... Re8 {[%clk 0:01:23]} 22.
Kf2 {[%clk 0:01:48.9]} 22... Nxc3 {[%clk 0:01:16.3]} 23. Rxb7 {[%clk 0:01:42]}
23... Nd1+ {[%clk 0:00:23.9]} 24. Kg1 {[%clk 0:01:41]} 24... Rd8 {[%clk
0:00:19.5]} 25. Qb1 {[%clk 0:00:40.8]} 1-0

[Event "*** SCC Grand Prix: Titled Tuesday Blitz"]
[Site "Chess.com"]
[Date "2020.06.02"]
[Round "2"]
[White "imdarealist"]
[Black "saikrishnaReturns"]
[Result "0-1"]
[WhiteElo "2240"]
[BlackElo "2631"]
[TimeControl "180+1"]
[EndTime "10:16:44 PDT"]
[Termination "saikrishnaReturns won by checkmate"]

1. d4 {[%clk 0:03:00.8]} 1... Nf6 {[%clk 0:02:59.5]} 2. Bf4 {[%clk 0:03:01.1]}
2... g6 {[%clk 0:02:59.3]} 3. e3 {[%clk 0:03:01.4]} 3... Bg7 {[%clk 0:02:59.7]}
4. Nf3 {[%clk 0:03:02]} 4... O-O {[%clk 0:02:59.9]} 5. h3 {[%clk 0:03:02]} 5...
d6 {[%clk 0:03:00.3]} 6. c3 {[%clk 0:03:02.6]} 6... Nfd7 {[%clk 0:03:00.5]} 7.
Bh2 {[%clk 0:03:01.2]} 7... e5 {[%clk 0:03:00.7]} 8. Be2 {[%clk 0:03:01.4]} 8...
Nc6 {[%clk 0:03:00.9]} 9. O-O {[%clk 0:03:01.2]} 9... f5 {[%clk 0:02:54]} 10.
Qc2 {[%clk 0:02:59.6]} 10... e4 {[%clk 0:02:45.1]} 11. Nfd2 {[%clk 0:02:59.1]}
11... Qh4 {[%clk 0:02:44.1]} 12. Bg3 {[%clk 0:02:52.1]} 12... Qh6 {[%clk
0:02:42.7]} 13. c4 {[%clk 0:02:47]} 13... g5 {[%clk 0:02:39.5]} 14. Nc3 {[%clk
0:02:36.2]} 14... f4 {[%clk 0:02:18.1]} 15. Bh2 {[%clk 0:02:23.1]} 15... f3
{[%clk 0:02:18.2]} 16. gxf3 {[%clk 0:02:20.2]} 16... exf3 {[%clk 0:02:18.2]} 17.
Bxf3 {[%clk 0:02:17.6]} 17... Rxf3 {[%clk 0:02:17.9]} 18. Nxf3 {[%clk
0:02:08.7]} 18... Qxh3 {[%clk 0:02:17.7]} 19. Bg3 {[%clk 0:01:57.3]} 19... Nf6
{[%clk 0:02:07.9]} 20. Nxg5 {[%clk 0:01:57]} 20... Qh5 {[%clk 0:02:07.3]} 21.
Nce4 {[%clk 0:01:25]} 21... Ng4 {[%clk 0:02:01.9]} 22. Qe2 {[%clk 0:01:15.5]}
22... h6 {[%clk 0:01:55.3]} 23. Nf3 {[%clk 0:01:05.3]} 23... Bf5 {[%clk
0:01:32.9]} 24. Nfd2 {[%clk 0:00:35.7]} 24... Qg6 {[%clk 0:01:19.7]} 25. Nc3
{[%clk 0:00:34.9]} 25... Bd3 {[%clk 0:01:17]} 26. Qf3 {[%clk 0:00:35.1]} 26...
Rf8 {[%clk 0:01:12.5]} 27. Qd5+ {[%clk 0:00:28.3]} 27... Kh8 {[%clk 0:01:11.2]}
28. a3 {[%clk 0:00:28.2]} 28... Rf5 {[%clk 0:00:59.8]} 29. Kg2 {[%clk
0:00:21.5]} 29... Rxd5 {[%clk 0:00:57.6]} 30. cxd5 {[%clk 0:00:20.7]} 30... Ne7
{[%clk 0:00:55.2]} 31. Rh1 {[%clk 0:00:19.7]} 31... Nf5 {[%clk 0:00:53.8]} 32.
Rae1 {[%clk 0:00:19.1]} 32... Nxf2 {[%clk 0:00:49.6]} 33. Rh3 {[%clk 0:00:14.9]}
33... Nxh3 {[%clk 0:00:48.5]} 34. Kxh3 {[%clk 0:00:15]} 34... Qxg3# {[%clk
0:00:48.1]} 0-1

[Event "*** SCC Grand Prix: Titled Tuesday Blitz"]
[Site "Chess.com"]
[Date "2020.06.02"]
[Round "2"]
[White "Skatchkov_V"]
[Black "ram1zan"]
[Result "0-1"]
[WhiteElo "2547"]
[BlackElo "2852"]
[TimeControl "180+1"]
[EndTime "10:16:45 PDT"]
[Termination "ram1zan won by resignation"]

1. d4 {[%clk 0:03:00.9]} 1... Nf6 {[%clk 0:02:59.8]} 2. c4 {[%clk 0:03:00.6]}
2... e6 {[%clk 0:02:58.9]} 3. Nf3 {[%clk 0:03:00.8]} 3... c5 {[%clk 0:02:59.5]}
4. d5 {[%clk 0:03:00.7]} 4... exd5 {[%clk 0:03:00.4]} 5. cxd5 {[%clk 0:03:01.6]}
5... Bd6 {[%clk 0:03:01.1]} 6. Nc3 {[%clk 0:03:02.1]} 6... O-O {[%clk
0:03:01.6]} 7. g3 {[%clk 0:02:56.5]} 7... Re8 {[%clk 0:03:02]} 8. Bg2 {[%clk
0:02:56.3]} 8... Bc7 {[%clk 0:03:02.7]} 9. O-O {[%clk 0:02:55.2]} 9... d6 {[%clk
0:03:03.3]} 10. a4 {[%clk 0:02:53.1]} 10... Nbd7 {[%clk 0:03:02.9]} 11. Bf4
{[%clk 0:02:43.9]} 11... Nf8 {[%clk 0:03:01.9]} 12. Qc2 {[%clk 0:02:33.8]} 12...
Ng6 {[%clk 0:03:01]} 13. Bg5 {[%clk 0:02:26.7]} 13... h6 {[%clk 0:02:53.6]} 14.
Bd2 {[%clk 0:02:22.9]} 14... a6 {[%clk 0:02:33.4]} 15. Rfe1 {[%clk 0:01:59.3]}
15... Rb8 {[%clk 0:02:04.3]} 16. e4 {[%clk 0:01:45.9]} 16... b5 {[%clk
0:01:59.5]} 17. axb5 {[%clk 0:01:39.1]} 17... axb5 {[%clk 0:02:00.4]} 18. b4
{[%clk 0:01:06.9]} 18... cxb4 {[%clk 0:02:00]} 19. Na2 {[%clk 0:01:01.8]} 19...
b3 {[%clk 0:02:00.4]} 20. Qxb3 {[%clk 0:01:01.9]} 20... Nxe4 {[%clk 0:02:00.9]}
21. Nb4 {[%clk 0:01:00.6]} 21... Nc5 {[%clk 0:01:25.9]} 22. Qc2 {[%clk
0:00:55.6]} 22... Bd7 {[%clk 0:01:07.2]} 23. Nd4 {[%clk 0:00:55.1]} 23... Qf6
{[%clk 0:01:06.8]} 24. Ndc6 {[%clk 0:00:51.4]} 24... Rxe1+ {[%clk 0:01:06]} 25.
Rxe1 {[%clk 0:00:50.3]} 25... Re8 {[%clk 0:01:06.2]} 26. Rxe8+ {[%clk
0:00:38.3]} 26... Bxe8 {[%clk 0:01:07.1]} 27. Bc3 {[%clk 0:00:36.1]} 27... Qg5
{[%clk 0:01:05.3]} 28. h4 {[%clk 0:00:33.1]} 28... Qg4 {[%clk 0:01:01.7]} 29.
Kh2 {[%clk 0:00:25.4]} 29... Bd7 {[%clk 0:00:57.6]} 30. f3 {[%clk 0:00:24]}
30... Qc4 {[%clk 0:00:57.2]} 31. Qb2 {[%clk 0:00:22.2]} 31... Na4 {[%clk
0:00:54.2]} 0-1

[Event "*** SCC Grand Prix: Titled Tuesday Blitz"]
[Site "Chess.com"]
[Date "2020.06.02"]
[Round "2"]
[White "boasovietica"]
[Black "Mbneu"]
[Result "0-1"]
[WhiteElo "2432"]
[BlackElo "2249"]
[TimeControl "180+1"]
[EndTime "10:16:46 PDT"]
[Termination "Mbneu won by resignation"]

1. e4 {[%clk 0:03:00.9]} 1... c5 {[%clk 0:02:52.5]} 2. Nf3 {[%clk 0:03:00.3]}
2... Nf6 {[%clk 0:02:52.6]} 3. Nc3 {[%clk 0:02:59]} 3... d5 {[%clk 0:02:52.1]}
4. exd5 {[%clk 0:02:55.1]} 4... Nxd5 {[%clk 0:02:53]} 5. Bc4 {[%clk 0:02:54.7]}
5... Nb6 {[%clk 0:02:52.6]} 6. Bb5+ {[%clk 0:02:37.8]} 6... Bd7 {[%clk
0:02:52.2]} 7. Ne5 {[%clk 0:02:23.3]} 7... Bxb5 {[%clk 0:02:45.4]} 8. Qf3 {[%clk
0:02:18.4]} 8... Bc4 {[%clk 0:02:35.1]} 9. Nxc4 {[%clk 0:02:11.7]} 9... Nxc4
{[%clk 0:02:31.8]} 10. Qxb7 {[%clk 0:02:08.5]} 10... Nd7 {[%clk 0:02:24.3]} 11.
Nb5 {[%clk 0:01:52.1]} 11... Rc8 {[%clk 0:02:22.5]} 12. Nxa7 {[%clk 0:01:46.4]}
12... Nd6 {[%clk 0:02:06.3]} 13. Qf3 {[%clk 0:01:33.5]} 13... Rc7 {[%clk
0:02:02.7]} 14. Nc6 {[%clk 0:00:58.9]} 14... Qa8 {[%clk 0:01:59.4]} 15. Ne5
{[%clk 0:00:47.5]} 15... Qxf3 {[%clk 0:01:54.6]} 16. Nxf3 {[%clk 0:00:48.4]}
16... e5 {[%clk 0:01:47]} 17. d3 {[%clk 0:00:46]} 17... Be7 {[%clk 0:01:43.6]}
18. Be3 {[%clk 0:00:43.1]} 18... O-O {[%clk 0:01:42]} 19. O-O {[%clk 0:00:43.5]}
19... f5 {[%clk 0:01:37.2]} 20. Bd2 {[%clk 0:00:35.4]} 20... h6 {[%clk
0:01:29.6]} 21. Bc3 {[%clk 0:00:34]} 21... Bf6 {[%clk 0:01:28.4]} 22. Rad1
{[%clk 0:00:30.2]} 22... Nb5 {[%clk 0:01:24.5]} 23. Bd2 {[%clk 0:00:12.2]} 23...
Nd4 {[%clk 0:01:23.6]} 24. Nxd4 {[%clk 0:00:10.2]} 24... cxd4 {[%clk 0:01:23.4]}
25. c4 {[%clk 0:00:10.6]} 25... dxc3 {[%clk 0:01:20.2]} 26. bxc3 {[%clk
0:00:10.1]} 26... Ra8 {[%clk 0:01:16.5]} 27. Ra1 {[%clk 0:00:07.6]} 27... Rca7
{[%clk 0:01:16.4]} 28. Rfb1 {[%clk 0:00:04.2]} 28... Rxa2 {[%clk 0:01:15.8]} 29.
Rxa2 {[%clk 0:00:04.5]} 29... Rxa2 {[%clk 0:01:15.4]} 30. Be1 {[%clk 0:00:05.4]}
30... Nc5 {[%clk 0:01:13.6]} 31. Rd1 {[%clk 0:00:04.1]} 31... e4 {[%clk
0:01:04.4]} 32. d4 {[%clk 0:00:03.3]} 32... Nd3 {[%clk 0:01:02.5]} 33. Kf1
{[%clk 0:00:02.6]} 33... Rc2 {[%clk 0:01:01.6]} 0-1

[Event "*** SCC Grand Prix: Titled Tuesday Blitz"]
[Site "Chess.com"]
[Date "2020.06.02"]
[Round "2"]
[White "tamarozi99"]
[Black "VALPARAISO37"]
[Result "0-1"]
[WhiteElo "2018"]
[BlackElo "2363"]
[TimeControl "180+1"]
[EndTime "10:16:47 PDT"]
[Termination "VALPARAISO37 won on time"]

1. e4 {[%clk 0:03:00.9]} 1... e5 {[%clk 0:02:58.8]} 2. Nf3 {[%clk 0:03:00.2]}
2... Nc6 {[%clk 0:02:58.4]} 3. Bb5 {[%clk 0:02:59]} 3... a6 {[%clk 0:02:58]} 4.
Ba4 {[%clk 0:02:58.1]} 4... Nf6 {[%clk 0:02:57]} 5. d3 {[%clk 0:02:58.2]} 5...
Bc5 {[%clk 0:02:55.7]} 6. c3 {[%clk 0:02:57]} 6... b5 {[%clk 0:02:55.9]} 7. Bb3
{[%clk 0:02:56]} 7... d6 {[%clk 0:02:53.7]} 8. h3 {[%clk 0:02:53.4]} 8... Bb6
{[%clk 0:02:47.8]} 9. O-O {[%clk 0:02:46.1]} 9... O-O {[%clk 0:02:46.8]} 10. Be3
{[%clk 0:02:33.1]} 10... Rb8 {[%clk 0:02:44.8]} 11. Nbd2 {[%clk 0:02:28.1]}
11... Ne7 {[%clk 0:02:44.8]} 12. d4 {[%clk 0:02:14.4]} 12... Ng6 {[%clk
0:02:44.5]} 13. Re1 {[%clk 0:01:56.6]} 13... h6 {[%clk 0:02:41.6]} 14. Qc2
{[%clk 0:01:42.6]} 14... Re8 {[%clk 0:02:36.4]} 15. a4 {[%clk 0:01:39.1]} 15...
Be6 {[%clk 0:02:33.3]} 16. d5 {[%clk 0:01:38.7]} 16... Bd7 {[%clk 0:02:30.1]}
17. Nf1 {[%clk 0:01:31.3]} 17... Nh5 {[%clk 0:02:29]} 18. Kh2 {[%clk 0:01:10.9]}
18... Nhf4 {[%clk 0:02:13.8]} 19. Ng3 {[%clk 0:01:10.5]} 19... Qc8 {[%clk
0:02:11.2]} 20. Nf5 {[%clk 0:00:59]} 20... Kh7 {[%clk 0:02:10.2]} 21. g3 {[%clk
0:00:53.1]} 21... Nh5 {[%clk 0:02:02.4]} 22. Qc1 {[%clk 0:00:37]} 22... Bxf5
{[%clk 0:02:00.1]} 23. exf5 {[%clk 0:00:34.9]} 23... Qxf5 {[%clk 0:02:00.1]} 24.
Qd1 {[%clk 0:00:20.2]} 24... Bxe3 {[%clk 0:01:59]} 25. Rxe3 {[%clk 0:00:18.7]}
25... Nf6 {[%clk 0:01:53.4]} 26. Bc2 {[%clk 0:00:15.2]} 26... Qd7 {[%clk
0:01:51.9]} 27. Nh4 {[%clk 0:00:13.6]} 27... bxa4 {[%clk 0:01:46.3]} 28. Bxa4
{[%clk 0:00:08.7]} 28... Qc8 {[%clk 0:01:42]} 29. Bxe8 {[%clk 0:00:08.2]} 29...
Qxe8 {[%clk 0:01:39]} 30. Nxg6 {[%clk 0:00:07.8]} 30... fxg6 {[%clk 0:01:38.5]}
31. Rxa6 {[%clk 0:00:07.8]} 31... Rxb2 {[%clk 0:01:38.4]} 32. Ra7 {[%clk
0:00:06.8]} 32... Rxf2+ {[%clk 0:01:36.5]} 33. Kg1 {[%clk 0:00:06.9]} 33... Qf7
{[%clk 0:01:28.2]} 34. Kxf2 {[%clk 0:00:04.8]} 34... Ng4+ {[%clk 0:01:28.4]} 35.
Ke2 {[%clk 0:00:05]} 35... Qf2+ {[%clk 0:01:28]} 36. Kd3 {[%clk 0:00:04.4]}
36... Qxe3+ {[%clk 0:01:28.3]} 37. Kc2 {[%clk 0:00:04.4]} 37... Nf2 {[%clk
0:01:24.5]} 38. Qa1 {[%clk 0:00:02.4]} 38... Qd3+ {[%clk 0:01:21.8]} 39. Kb3
{[%clk 0:00:02.5]} 39... Qxd5+ {[%clk 0:01:21.4]} 40. c4 {[%clk 0:00:01.8]}
40... Qc5 {[%clk 0:01:20.6]} 0-1

[Event "*** SCC Grand Prix: Titled Tuesday Blitz"]
[Site "Chess.com"]
[Date "2020.06.02"]
[Round "2"]
[White "BIG_Pirate"]
[Black "Alexander_Donchenko"]
[Result "0-1"]
[WhiteElo "2358"]
[BlackElo "2697"]
[TimeControl "180+1"]
[EndTime "10:16:49 PDT"]
[Termination "Alexander_Donchenko won by resignation"]

1. Nf3 {[%clk 0:03:00.9]} 1... Nf6 {[%clk 0:02:59.8]} 2. c4 {[%clk 0:03:00.4]}
2... e6 {[%clk 0:03:00.1]} 3. g3 {[%clk 0:03:00.1]} 3... a6 {[%clk 0:02:59.8]}
4. Bg2 {[%clk 0:03:00.4]} 4... b5 {[%clk 0:03:00.4]} 5. b3 {[%clk 0:03:00.3]}
5... c5 {[%clk 0:03:00.8]} 6. Na3 {[%clk 0:02:55.9]} 6... Qb6 {[%clk 0:02:58.7]}
7. O-O {[%clk 0:02:54.3]} 7... Bb7 {[%clk 0:02:59]} 8. Qc2 {[%clk 0:02:41.7]}
8... Be7 {[%clk 0:02:58.6]} 9. Bb2 {[%clk 0:02:40]} 9... O-O {[%clk 0:02:57.4]}
10. Rfd1 {[%clk 0:02:21.3]} 10... h6 {[%clk 0:02:53.2]} 11. Rac1 {[%clk
0:02:18.7]} 11... d5 {[%clk 0:02:50.6]} 12. d4 {[%clk 0:02:13.8]} 12... dxc4
{[%clk 0:02:50.4]} 13. bxc4 {[%clk 0:02:08.3]} 13... b4 {[%clk 0:02:49.3]} 14.
Nb1 {[%clk 0:02:08.1]} 14... Nbd7 {[%clk 0:02:44.7]} 15. Nbd2 {[%clk 0:01:57.1]}
15... Rfc8 {[%clk 0:02:40.3]} 16. Nb3 {[%clk 0:01:53.2]} 16... a5 {[%clk
0:02:38.8]} 17. e3 {[%clk 0:01:41.6]} 17... a4 {[%clk 0:02:35.6]} 18. Nxc5
{[%clk 0:01:41.3]} 18... Nxc5 {[%clk 0:02:35]} 19. dxc5 {[%clk 0:01:42.2]} 19...
Qxc5 {[%clk 0:02:33.9]} 20. Ne5 {[%clk 0:01:23.4]} 20... Bxg2 {[%clk 0:02:33.3]}
21. Kxg2 {[%clk 0:01:24.3]} 21... Rab8 {[%clk 0:02:20.4]} 22. Kg1 {[%clk
0:01:23.4]} 22... b3 {[%clk 0:02:19.2]} 23. axb3 {[%clk 0:01:22.7]} 23... axb3
{[%clk 0:02:20.1]} 24. Qc3 {[%clk 0:01:14.2]} 24... Qb4 {[%clk 0:02:09.1]} 25.
Qd4 {[%clk 0:00:57.8]} 25... Rd8 {[%clk 0:02:03.5]} 26. Qf4 {[%clk 0:00:52.1]}
26... Rxd1+ {[%clk 0:02:01.4]} 27. Rxd1 {[%clk 0:00:51.3]} 27... Rd8 {[%clk
0:02:01.5]} 28. Rxd8+ {[%clk 0:00:39.8]} 28... Bxd8 {[%clk 0:02:02.4]} 29. Nc6
{[%clk 0:00:40.3]} 29... Qd2 {[%clk 0:01:49.7]} 30. Qd4 {[%clk 0:00:31.8]} 30...
Qe1+ {[%clk 0:01:34.4]} 31. Kg2 {[%clk 0:00:31.4]} 31... Bc7 {[%clk 0:01:35.3]}
32. h3 {[%clk 0:00:21.2]} 32... Qb1 {[%clk 0:01:30.8]} 33. g4 {[%clk 0:00:14.8]}
33... Qc2 {[%clk 0:01:24.8]} 34. h4 {[%clk 0:00:12.8]} 34... h5 {[%clk
0:01:07.5]} 35. g5 {[%clk 0:00:12.7]} 35... Qe4+ {[%clk 0:01:08.1]} 36. Qxe4
{[%clk 0:00:12.1]} 36... Nxe4 {[%clk 0:01:09]} 37. Kf3 {[%clk 0:00:08.5]} 37...
Nd2+ {[%clk 0:01:08.2]} 38. Ke2 {[%clk 0:00:07.9]} 38... Nxc4 {[%clk 0:01:08.9]}
39. Kd3 {[%clk 0:00:06.4]} 39... Nxb2+ {[%clk 0:01:09]} 0-1

[Event "*** SCC Grand Prix: Titled Tuesday Blitz"]
[Site "Chess.com"]
[Date "2020.06.02"]
[Round "2"]
[White "SergeyKarjakin"]
[Black "wild_cat99"]
[Result "1-0"]
[WhiteElo "2932"]
[BlackElo "2570"]
[TimeControl "180+1"]
[EndTime "10:16:53 PDT"]
[Termination "SergeyKarjakin won by checkmate"]

1. e4 {[%clk 0:03:00.9]} 1... c5 {[%clk 0:02:59.2]} 2. Nf3 {[%clk 0:03:00.4]}
2... d6 {[%clk 0:02:59.5]} 3. d4 {[%clk 0:02:59.8]} 3... cxd4 {[%clk 0:03:00.4]}
4. Nxd4 {[%clk 0:03:00.4]} 4... Nf6 {[%clk 0:03:00.9]} 5. Nc3 {[%clk 0:03:01]}
5... a6 {[%clk 0:03:01.4]} 6. Bd3 {[%clk 0:03:01.6]} 6... e6 {[%clk 0:03:00]} 7.
f4 {[%clk 0:02:59.5]} 7... Qc7 {[%clk 0:03:00.1]} 8. Qf3 {[%clk 0:02:54]} 8...
b5 {[%clk 0:02:58.1]} 9. g4 {[%clk 0:02:37.8]} 9... Bb7 {[%clk 0:02:51.3]} 10.
g5 {[%clk 0:02:37.3]} 10... Nfd7 {[%clk 0:02:50.2]} 11. a3 {[%clk 0:02:32.6]}
11... Nc5 {[%clk 0:02:44.6]} 12. Be3 {[%clk 0:02:31.5]} 12... Nbd7 {[%clk
0:02:30.7]} 13. h4 {[%clk 0:02:30.3]} 13... Nb6 {[%clk 0:02:29.5]} 14. f5 {[%clk
0:02:12.3]} 14... e5 {[%clk 0:02:27.2]} 15. Nde2 {[%clk 0:02:04.3]} 15... O-O-O
{[%clk 0:01:59.3]} 16. b4 {[%clk 0:01:58]} 16... Nca4 {[%clk 0:01:52.1]} 17.
Nxa4 {[%clk 0:01:57.1]} 17... Nxa4 {[%clk 0:01:53]} 18. O-O {[%clk 0:01:55.3]}
18... d5 {[%clk 0:01:39.6]} 19. exd5 {[%clk 0:01:44.8]} 19... Bxd5 {[%clk
0:01:40.5]} 20. Be4 {[%clk 0:01:44.4]} 20... Qc4 {[%clk 0:01:17.2]} 21. Bxd5
{[%clk 0:01:31.3]} 21... Qxd5 {[%clk 0:01:18.1]} 22. Qg4 {[%clk 0:01:28.2]}
22... Kb8 {[%clk 0:01:10.6]} 23. Rad1 {[%clk 0:01:10.8]} 23... Qxd1 {[%clk
0:01:10.4]} 24. Rxd1 {[%clk 0:01:11.7]} 24... Rxd1+ {[%clk 0:01:11.2]} 25. Kf2
{[%clk 0:01:12.4]} 25... Rd6 {[%clk 0:01:01.3]} 26. c4 {[%clk 0:01:08.6]} 26...
Nb2 {[%clk 0:00:59.8]} 27. cxb5 {[%clk 0:01:05]} 27... Nd1+ {[%clk 0:00:57.2]}
28. Kg3 {[%clk 0:00:56.4]} 28... Nxe3 {[%clk 0:00:48.3]} 29. Qe4 {[%clk
0:00:56.8]} 29... Nd5 {[%clk 0:00:44.4]} 30. bxa6 {[%clk 0:00:55.6]} 30... Be7
{[%clk 0:00:36]} 31. Nc3 {[%clk 0:00:54.1]} 31... Rhd8 {[%clk 0:00:32.7]} 32. b5
{[%clk 0:00:53.2]} 32... R6d7 {[%clk 0:00:27.3]} 33. Nxd5 {[%clk 0:00:42.5]}
33... Rxd5 {[%clk 0:00:28.2]} 34. b6 {[%clk 0:00:43.4]} 34... Rd3+ {[%clk
0:00:28]} 35. Kg4 {[%clk 0:00:42.5]} 35... R3d4 {[%clk 0:00:27.9]} 36. a7+
{[%clk 0:00:42.3]} 36... Kc8 {[%clk 0:00:26]} 37. a8=Q+ {[%clk 0:00:42.6]} 37...
Kd7 {[%clk 0:00:26.9]} 38. Qc6# {[%clk 0:00:42.5]} 1-0